[Event "1st Serbian League 2022"]
[Site "Vrnjacka Banja"]
[Date "2022.09.25"]
[Round "6.9"]
[White "Perunovic, Milos"]
[Black "Sarenac, Ivan"]
[Result "1-0"]
[ECO "C45"]
[WhiteElo "2542"]
[BlackElo "2402"]
[Annotator "TA"]
[PlyCount "167"]
[EventDate "2022.09.20"]
[EventType "team-tourn"]
[EventCountry "SRB"]
[SourceTitle "playchess.com"]
[Source "ChessBase"]
[SourceQuality "1"]
[TimeControl "40/5400+30:1800+30"]

{[%evp 11,167,0,-4,-10,29,29,33,30,22,26,17,18,17,27,22,29,16,26,23,-14,38,31,20,14,26,28,38,36,89,58,66,53,50,48,57,54,48,28,34,29,32,35,48,29,49,46,62,0,79,79,83,23,191,147,137,138,129,104,125,130,149,129,132,139,138,135,147,150,141,129,179,179,200,200,199,200,199,182,197,197,196,175,177,168,269,154,153,137,148,135,131,57,81,50,73,35,35,0,0,0,0,0,0,0,8,0,22,22,114,129,217,195,298,268,270,100,199,198,367,166,170,0,202,210,326,214,248,0,682,637,811,793,744,644,12834,12835,6660,724,1064,1027,1435,1292,5618,5215,12839,12839,12841,12842,12842,12843,12843,12841,12842,12842,12844,12843,12847,12843]} 1. e4 {[%emt 0:00:31]} e5 {[%emt 0:00:08]} 2. Nf3 {[%emt 0:00:34]} Nc6 {[%emt 0:00:10]} 3. d4 {[%emt 0:00:26]} exd4 {[%emt 0:00:20]} 4. Nxd4 {[%emt 0:00:11]} Bc5 {[%emt 0:01:08]} 5. Nb3 {[%emt 0:00:18]} Bb6 {[%emt 0:00:15]} 6. Nc3 {[%emt 0:00:12]} Nf6 {[%emt 0:00:57] 6...Nf6 is better than 6...d6.} 7. Qf3 {[%emt 0:02:23] C45: Scotch Game.} a5 {[%emt 0:06:17] [#]} 8. Bb5 $146 {[%emt 0:12:37]} ({Predecessor:} 8. Na4 Nd4 9. Nxd4 Bxd4 10. c3 Ba7 11. Be3 Bxe3 12. Qxe3 O-O 13. Bd3 d5 14. e5 Ng4 {0-1 (40) Maurizzi,M (2018)-Borisek,J (2576) Chess.com INT 2018}) 8... O-O {[%emt 0:05:31]} 9. Bg5 $1 {[%emt 0:01:08] White is slightly better.} Ne5 {[%emt 0:00:40]} 10. Qg3 {[%emt 0:09:18]} Neg4 {[%emt 0:00:40]} 11. O-O {[%emt 0:13:25]} h6 {[%emt 0:01:11]} 12. Qxg4 {[%emt 0:04:46]} hxg5 {[%emt 0:00:35]} 13. Qxg5 {[%emt 0:00:19]} c6 {[%emt 0:00:09]} 14. Bd3 {[%emt 0:03:36]} d6 {[%emt 0:04:36]} 15. Rad1 {[%emt 0:04:41]} Be6 {[%emt 0:08:01]} (15... a4 $11 16. Nc1 Ra5) 16. e5 {[%emt 0:10:02]} dxe5 {[%emt 0:03:33]} 17. Qxe5 {[%emt 0:00:54][%cal Od3h7]} Bc7 {[%emt 0:18:51] This bishop pair is nice.} 18. Qe2 {[%emt 0:05:46][%cal Od3h7]} Qb8 {[%emt 0:14:51]} (18... Qd6 $2 19. Bh7+ $1 {[%mdl 512]} Nxh7 20. Rxd6 Bxd6 21. Ne4 $18) 19. h3 {[%emt 0:00:43]} Be5 {[%emt 0:00:41]} (19... Bb6 $14) 20. Nc5 {[%emt 0:05:45]} Re8 {[%emt 0:03:15]} 21. Nxe6 {[%emt 0:01:39]} Rxe6 {[%emt 0:00:15]} 22. Qf3 $1 {[%emt 0:00:22]} Bxc3 {[%emt 0:04:53]} 23. bxc3 {[%emt 0:00:05]} Qe5 {[%emt 0:00:04]} 24. Bc4 {[%emt 0:02:18]} Re7 {[%emt 0:00:16]} 25. Rd4 {[%emt 0:00:48]} Rae8 {[%emt 0:04:33]} 26. Rfd1 {[%emt 0:01:01]} b5 {[%emt 0:02:23]} 27. Bf1 {[%emt 0:20:12]} Ne4 {[%emt 0:00:25]} 28. g3 {[%emt 0:00:00]} Qc5 {[%emt 0:04:18]} 29. R4d3 {[%emt 0:00:00]} (29. c4 $14) 29... b4 {[%emt 0:08:35]} (29... Re6 $11 {remains equal.}) 30. cxb4 $16 {[%emt 0:00:00]} axb4 {[%emt 0:00:04]} 31. Rd7 {[%emt 0:00:00]} (31. Rd8 $16) 31... Nc3 $2 {[%emt 0:02:14] [#]} (31... Ng5 $1 $11 {and Black is okay.} 32. Qg4 Re4) 32. Re1 $3 {[%emt 0:00:00][%mdl 512]} Kf8 {[%emt 0:04:05]} 33. Rexe7 {[%emt 0:00:00]} Rxe7 {[%emt 0:00:03]} 34. Rd8+ $40 {[%emt 0:00:00][%mdl 128] White is out for blood.} Re8 {[%emt 0:00:01]} 35. Rxe8+ {[%emt 0:01:32]} Kxe8 {[%emt 0:00:02][%mdl 4096] Endgame KQB-KQN} 36. Qf4 {[%emt 0:00:14]} Nd5 {[%emt 0:03:33]} 37. Qe4+ {[%emt 0:00:48]} Kf8 {[%emt 0:00:21]} 38. h4 {[%emt 0:00:27]} g6 {[%emt 0:00:17]} 39. Bc4 {[%emt 0:00:18]} Nf6 {[%emt 0:01:10]} 40. Qf4 {[%emt 0:00:24]} Kg7 {[%emt 0:00:02]} (40... Qe7 $16 41. Qh6+ Ke8) 41. Bb3 $18 {[%emt 0:30:26]} Qe7 {[%emt 0:02:16]} 42. Qc4 {[%emt 0:00:00]} c5 {[%emt 0:02:55]} 43. c3 {[%emt 0:00:00]} Nd7 {[%emt 0:07:43]} 44. cxb4 {[%emt 0:00:00]} cxb4 {[%emt 0:00:05]} 45. Qd4+ {[%emt 0:00:00]} Kg8 {[%emt 0:00:13]} 46. Kf1 {[%emt 0:00:00]} Ne5 {[%emt 0:00:52]} 47. Qe4 {[%emt 0:00:00]} Qd6 {[%emt 0:10:50]} (47... Qf6 $142 48. Bd5 Qa6+ 49. Ke1 Qf6) 48. Qd5 {[%emt 0:00:00]} (48. f4 $18 Ng4 49. f5 (49. Qe8+ Kg7 $11) 49... gxf5 50. Qe8+ Kh7 51. Qxf7+ Kh6 52. Qe6+ Qxe6 53. Bxe6) 48... Qc7 {[%emt 0:01:39]} 49. Ke2 {[%emt 0:00:00]} Kf8 {[%emt 0:02:46]} 50. f4 {[%emt 0:00:00]} Ng4 {[%emt 0:01:23]} 51. Qd4 {[%emt 0:00:40]} (51. h5 $1 $16 {[%cal Rh5g6] Strongly threatening hxg6.} Qe7+ 52. Kd3) 51... Qb7 {[%emt 0:00:17]} 52. Bd5 {[%emt 0:01:23] Against Qg2+} Qb5+ {[%emt 0:00:36]} 53. Qc4 {[%emt 0:01:14]} Qb6 {[%emt 0:01:10]} 54. Kd3 {[%emt 0:03:56] Active counter play!} Qe3+ {[%emt 0:02:26]} 55. Kc2 {[%emt 0:00:02]} Kg7 {[%emt 0:01:00]} 56. Qxb4 {[%emt 0:01:06]} Qe2+ {[%emt 0:00:44]} 57. Kc1 {[%emt 0:00:02]} Qe3+ {[%emt 0:02:09]} 58. Kb2 {[%emt 0:00:09]} Qe2+ {[%emt 0:00:10]} (58... Nf6 59. Bb3 $14) 59. Ka3 {[%emt 0:00:16] aiming for Qb2+.} Qa6+ {[%emt 0:00:08]} (59... Qe3+ $11 60. Bb3 Qxg3) 60. Kb3 $16 {[%emt 0:00:11] Threatens to win with Bc4.} Qe2 {[%emt 0:00:32]} (60... Nf6 $16) 61. Qd4+ {[%emt 0:00:38]} Kh7 {[%emt 0:00:15]} (61... Nf6 {was necessary.}) 62. Bc4 {[%emt 0:01:06]} ({Don't do} 62. Bxf7 Qf3+ 63. Kb2 Qg2+ 64. Kc3 Nf2) 62... Qe1 {[%emt 0:00:50]} 63. Qc3 $2 {[%emt 0:00:54]} (63. Bxf7 $18 {and White stays clearly on top.} Qxg3+ 64. Ka4 Qxh4 65. Qd6) 63... Qd1+ {[%emt 0:00:38]} (63... Qb1+ $16 64. Ka4 Qd1+ 65. Qb3 Qd7+ 66. Qb5 Qd1+ 67. Ka5 Qd2+ 68. Ka6 Qd6+ 69. Qb6 Qa3+ 70. Kb5 Qb2+ 71. Bb3 Qe2+ 72. Ka5 Qd2+ 73. Kb5 Qe2+ 74. Ka5 Qd2+ 75. Kb5 Qe2+) 64. Kb2 $18 {[%emt 0:00:22]} Nf2 $2 {[%emt 0:00:39]} (64... Qg1 {might work better.} 65. a4 (65. Bxf7 Qf2+ 66. Kb1 Qg1+ 67. Kb2 Qf2+ 68. Kb3 Qb6+ 69. Kc2 Qf2+ 70. Kb1 Qg1+ 71. Qc1 Qxg3 $18) 65... Qf2+ 66. Ka3 Qc5+ 67. Kb3 Qb6+ 68. Bb5 Ne3) 65. Qf6 {[%emt 0:01:41]} (65. Qe3 $142 Qg1 66. Kb3) 65... Qd2+ {[%emt 0:00:23] [#]} 66. Kb3 $1 {[%emt 0:00:22]} Qd1+ $2 {[%emt 0:00:25]} (66... Qe3+ $1 $11 67. Ka4 (67. Kb4 Ne4 $18) 67... Qa7+ 68. Kb4 Qb8+ 69. Ka3 Ne4 70. Qxf7+ Kh6) 67. Kb4 {[%emt 0:00:08]} Qe1+ {[%emt 0:00:50]} (67... Ne4 {keeps fighting.} 68. Qxf7+ Kh6) 68. Ka4 {[%emt 0:01:02]} Qe8+ {[%emt 0:00:19] [#]} 69. Ka3 $2 {[%emt 0:00:27]} (69. Ka5 $1 $18 Qa8+ 70. Kb5 Qb8+ 71. Qb6 Qe8+ 72. Qc6) 69... Qa8+ $2 {[%emt 0:00:41][%mdl 8192]} (69... Qe3+ $11 70. Ka4 Qe8+ 71. Ka5 Qa8+ 72. Kb4 Qb7+ 73. Ka4 Qa8+ 74. Kb5 Qb8+ 75. Qb6 Qe8+ 76. Qc6 Qe7) 70. Kb2 {[%emt 0:00:26] White is clearly winning.} Qb8+ {[%emt 0:00:40]} 71. Bb3 {[%emt 0:00:31]} Nd3+ {[%emt 0:00:29]} 72. Kc3 {[%emt 0:00:13]} Nc5 {[%emt 0:00:27] ...Ne4+ is the strong threat.} 73. Qxf7+ {[%emt 0:00:08]} Kh6 {[%emt 0:00:06]} 74. Qe7 {[%emt 0:01:39]} Qc8 {[%emt 0:00:25]} 75. Bc4 {[%emt 0:00:27][%cal Oh4h5]} Na4+ {[%emt 0:00:32]} 76. Kb3 {[%emt 0:00:16] Hoping for Qg5+.} Nc5+ {[%emt 0:00:48]} 77. Kb4 {[%emt 0:00:06]} Nd7 {[%emt 0:00:08]} 78. h5 {[%emt 0:00:36] Intending Qg5+ and mate.} Qb8+ {[%emt 0:01:05]} 79. Kc3 {[%emt 0:00:20]} Qh8+ {[%emt 0:00:21]} 80. Kc2 {[%emt 0:00:17] Threatening mate with Qg5+.} Nf6 {[%emt 0:00:06]} 81. hxg6 {[%emt 0:02:13]} Qc8 {[%emt 0:00:09]} 82. Kd3 {[%emt 0:00:00]} Qf5+ {[%emt 0:00:24]} 83. Kd4 {[%emt 0:00:00]} Qxg6 {[%emt 0:00:14]} 84. Qf8+ {[%emt 0:00:00] Weighted Error Value: White=0.14 (very precise) /Black=0.19 (very precise)} 1-0

[Event "1st Serbian League 2022"]
[Site "Vrnjacka Banja"]
[Date "2022.09.25"]
[Round "6.10"]
[White "Arsovic, Zoran"]
[Black "Kosic, Dragan"]
[Result "1/2-1/2"]
[ECO "A34"]
[WhiteElo "2362"]
[BlackElo "2399"]
[Annotator "TA"]
[PlyCount "33"]
[EventDate "2022.09.20"]
[EventType "team-tourn"]
[EventCountry "SRB"]
[SourceTitle "playchess.com"]
[Source "ChessBase"]
[SourceQuality "1"]
[TimeControl "40/5400+30:1800+30"]

{[%evp 13,20,14,13,13,14,6,12,15,8]} 1. Nf3 {[%emt 0:00:18]} c5 {[%emt 0:00:25]} 2. c4 {[%emt 0:00:49]} Nf6 {[%emt 0:00:34]} 3. Nc3 {[%emt 0:01:02]} Nc6 {[%emt 0:00:26]} 4. e3 {[%emt 0:02:48]} e5 {[%emt 0:01:44]} 5. Be2 {[%emt 0:02:41]} d5 {[%emt 0:04:34]} 6. d4 {[%emt 0:02:15]} exd4 $1 {[%emt 0:05:24] 6...exd4 is better than 6...cxd4.} 7. exd4 {[%emt 0:02:27]} cxd4 {[%emt 0:08:48] The position is equal.} 8. Nxd4 {[%emt 0:01:25] A34: Symmetrical English: 2 Nc3, lines with ...d5.} dxc4 {[%emt 0:01:33]} 9. Nxc6 {[%emt 0:07:22][%csl Gc6][%cal Rd1d8] [#]} Qxd1+ {[%emt 0:00:13]} 10. Nxd1 {[%emt 0:00:44] Threatens to win with Ne5.} bxc6 {[%emt 0:00:11] [#] An interesting draw.} {Predecessor:} 11. Bxc4 $146 Nd5 12. Bd2 Be6 13. Rc1 Rb8 14. O-O Bd6 15. Bb3 Bf4 16. Bxf4 Nxf4 17. Bc4 {½-½ (40) Sevian,S (2703)-Oparin,G (2685) Saint Louis 2022} 1/2-1/2

[Event "1st Serbian League 2022"]
[Site "Vrnjacka Banja"]
[Date "2022.09.25"]
[Round "6.11"]
[White "Lazic, Miroljub"]
[Black "Radusinovic, Lazar"]
[Result "1/2-1/2"]
[ECO "A05"]
[WhiteElo "2300"]
[BlackElo "2308"]
[Annotator "TA"]
[PlyCount "133"]
[EventDate "2022.09.20"]
[EventType "team-tourn"]
[EventCountry "SRB"]
[SourceTitle "playchess.com"]
[Source "ChessBase"]
[SourceQuality "1"]
[TimeControl "40/5400+30:1800+30"]

{[%evp 22,133,56,49,48,53,78,55,54,58,66,8,52,48,48,56,58,60,65,42,68,60,54,59,52,39,51,54,64,37,37,27,37,29,33,16,31,8,8,7,31,38,50,0,0,0,0,0,22,39,22,39,39,36,52,0,62,0,0,-19,-18,-28,-22,-16,-22,-22,-27,-56,-17,-16,-8,-8,-15,-17,0,-5,0,0,0,0,0,-8,-8,-8,-8,-8,-8,-8,-8,-8,-8,-8,0,0,0,0,7,0,7,-8,-8,-8,-8,-8,-8,-8,-8,-8,-8,-8,-8,-8,-8,-8]} 1. Nf3 {[%emt 0:00:02]} d5 {[%emt 0:00:30]} 2. b3 {[%emt 0:00:07]} Nf6 {[%emt 0:05:17]} 3. Bb2 {[%emt 0:00:23]} g6 {[%emt 0:00:15]} 4. c4 {[%emt 0:00:47]} Bg7 {[%emt 0:05:24]} 5. g3 {[%emt 0:01:37]} O-O {[%emt 0:00:52]} 6. Bg2 {[%emt 0:00:12]} c5 {[%emt 0:01:33]} 7. cxd5 {[%emt 0:03:13]} Nxd5 {[%emt 0:06:24]} 8. Bxg7 {[%emt 0:00:23]} Kxg7 {[%emt 0:00:05]} 9. O-O {[%emt 0:06:46]} Nc6 {[%emt 0:11:40]} 10. d4 {[%emt 0:05:03]} cxd4 {[%emt 0:01:17]} 11. Nxd4 {[%emt 0:03:21]} Nxd4 {[%emt 0:04:25]} 12. Qxd4+ {[%emt 0:01:10]} Nf6 {[%emt 0:00:05] A05: Réti Opening: 1 Nf3 Nf6.} 13. Qe5 {[%emt 0:01:21]} a5 {[%emt 0:06:40] 13...Qd6 is setting a new trend.} 14. Nc3 {[%emt 0:00:25]} Ra6 {[%emt 0:02:11] White is slightly better.} 15. Rfd1 {[%emt 0:01:18]} Re6 {[%emt 0:02:21] [#]} 16. Qb5 $146 {[%emt 0:21:49] White has more active pieces. The black rooks are badly placed.} ({But not} 16. Rxd8 Rxe5 17. Rd2 b5 $11) ({White should play} 16. Qb8 $14 Qb6 17. Rac1) ({Predecessor:} 16. Qf4 Qb6 17. Rac1 Rd8 18. Rxd8 Qxd8 19. Rd1 Qb6 20. Bf3 Bd7 21. Na4 Bxa4 22. Qxa4 {0-1 (63) Markowski,T (2625)-Nedilko,V (2413) Warsaw 2010}) 16... Qb6 {[%emt 0:01:19]} (16... Qc7 $5 {[%cal Rc7c3]} 17. Nd5 Nxd5 18. Bxd5 (18. Rxd5 Rc6 $11) 18... Rd6 $11) 17. Qxb6 {[%emt 0:01:28]} Rxb6 {[%emt 0:00:06]} 18. Rac1 {[%emt 0:00:42]} Rb4 {[%emt 0:05:35]} 19. Na4 {[%emt 0:01:25]} Bg4 {[%emt 0:05:35]} 20. Kf1 {[%emt 0:02:50]} (20. f3 $5 {[%cal Rf3g4]} Bd7 21. Nc5 $16) 20... Rc8 {[%emt 0:01:39][%cal Ob4d4]} 21. Ke1 {[%emt 0:06:42]} Rxc1 {[%emt 0:03:03]} 22. Rxc1 {[%emt 0:00:03]} Bd7 {[%emt 0:00:55]} 23. Nc5 {[%emt 0:00:43]} b6 $1 {[%emt 0:02:52]} 24. Nxd7 {[%emt 0:11:43]} Nxd7 $14 {[%emt 0:00:06][%mdl 4096] Endgame KRB-KRN} 25. Rc7 {[%emt 0:11:05]} (25. Rd1 $5 {[%cal Rd1d7]} Nf6 26. Bc6 $14) 25... Rd4 {[%emt 0:01:48]} 26. Bc6 {[%emt 0:01:08]} Ne5 {[%emt 0:00:36]} 27. Bb5 {[%emt 0:08:40]} Kf8 {[%emt 0:04:11]} 28. Rb7 {[%emt 0:03:53]} Rd6 {[%emt 0:02:29]} 29. f4 {[%emt 0:00:19]} Ng4 {[%emt 0:02:59]} 30. e4 {[%emt 0:00:18]} f6 {[%emt 0:03:58]} 31. h3 {[%emt 0:01:33]} Ne3 {[%emt 0:01:58]} 32. Rc7 {[%emt 0:00:49]} (32. Ke2 $14 Nc2 33. Bc4) 32... Rd4 $11 {[%emt 0:04:23]} 33. Ke2 {[%emt 0:04:00]} Rxe4 {[%emt 0:01:36]} 34. Kf3 {[%emt 0:00:03]} Rb4 {[%emt 0:00:15]} 35. Bd3 {[%emt 0:00:44][%mdl 1024] White has compensation.} Nf5 {[%emt 0:01:46]} 36. Bc4 {[%emt 0:00:31]} Nd4+ $1 {[%emt 0:01:59]} 37. Kf2 {[%emt 0:01:18]} Nb5 {[%emt 0:03:22]} 38. Rc8+ {[%emt 0:00:12]} Kg7 {[%emt 0:00:07]} 39. Rb8 {[%emt 0:00:50]} (39. Re8 $14) 39... Na3 {[%emt 0:01:01]} 40. Be6 {[%emt 0:00:24]} f5 {[%emt 0:01:10]} 41. Bd5 {[%emt 0:02:46]} Rd4 {[%emt 0:07:50]} 42. Rg8+ $1 {[%emt 0:00:20]} Kh6 {[%emt 0:00:40]} 43. Bf3 $1 {[%emt 0:07:32]} Nc2 {[%emt 0:06:02]} 44. Ke2 {[%emt 0:02:49] Inhibits Rd2+.} a4 {[%emt 0:03:58]} 45. Rc8 {[%emt 0:03:30] The position is equal.} Nb4 {[%emt 0:02:35]} 46. bxa4 {[%emt 0:00:46]} Nxa2 {[%emt 0:03:54]} 47. Rc7 {[%emt 0:00:41]} Rxa4 {[%emt 0:01:24]} 48. Rxe7 {[%emt 0:00:39]} Nc3+ {[%emt 0:00:22]} 49. Ke3 {[%emt 0:01:01]} Ra3 {[%emt 0:00:54] Hoping for ...Nd5+.} 50. Kf2 {[%emt 0:00:25]} Ra2+ {[%emt 0:02:35]} 51. Ke3 {[%emt 0:00:42] [#]} Re2+ $1 {[%emt 0:03:20]} 52. Bxe2 {[%emt 0:00:02]} Nd5+ {[%emt 0:00:05]} 53. Kd4 {[%emt 0:00:11]} Nxe7 {[%emt 0:00:15] KB-KN} 54. Ke5 {[%emt 0:00:07] Threatens to win with Ke6.} Kg7 {[%emt 0:00:41]} 55. g4 {[%emt 0:07:30]} h6 {[%emt 0:03:31]} 56. Kd6 {[%emt 0:02:20]} Kf6 {[%emt 0:05:16]} 57. g5+ {[%emt 0:03:47]} hxg5 {[%emt 0:00:05]} 58. fxg5+ {[%emt 0:00:01]} Kf7 {[%emt 0:01:03]} 59. h4 {[%emt 0:01:36]} Kf8 {[%emt 0:00:20]} 60. h5 {[%emt 0:01:28]} gxh5 {[%emt 0:01:00]} 61. Bxh5 {[%emt 0:00:03]} b5 {[%emt 0:00:21]} 62. Kc5 {[%emt 0:00:17]} Kg7 {[%emt 0:00:07]} 63. Kxb5 {[%emt 0:00:09]} Ng6 {[%emt 0:00:11]} 64. Kc5 {[%emt 0:00:41]} Nf4 {[%emt 0:00:05]} 65. Be8 {[%emt 0:00:33]} Ne6+ {[%emt 0:00:37]} 66. Kd6 {[%emt 0:00:14]} Nxg5 {[%emt 0:00:04]} 67. Ke5 {[%emt 0:04:30] Weighted Error Value: White=0.09 (flawless) /Black=0.06 (flawless)} 1/2-1/2

[Event "1st Serbian League 2022"]
[Site "Vrnjacka Banja"]
[Date "2022.09.25"]
[Round "6.12"]
[White "Todorovic, Goran N"]
[Black "Laketic, Gojko"]
[Result "1/2-1/2"]
[ECO "D36"]
[WhiteElo "2305"]
[BlackElo "2255"]
[Annotator "TA"]
[PlyCount "45"]
[EventDate "2022.09.20"]
[EventType "team-tourn"]
[EventCountry "SRB"]
[SourceTitle "playchess.com"]
[Source "ChessBase"]
[SourceQuality "1"]
[TimeControl "40/5400+30:1800+30"]

{[%evp 19,21,-14,-18,-24]} 1. c4 {[%emt 0:00:09]} e6 {[%emt 0:02:48][%cal Be7e6,Be6d5][%mdl 32]} 2. Nf3 {[%emt 0:02:23]} d5 {[%emt 0:00:46]} 3. d4 {[%emt 0:01:28]} Nf6 {[%emt 0:03:08]} 4. Nc3 {[%emt 0:01:31]} c6 {[%emt 0:07:52]} 5. cxd5 {[%emt 0:02:19]} exd5 {[%emt 0:01:59]} 6. Bg5 {[%emt 0:00:11]} Be7 {[%emt 0:00:08]} 7. Qc2 {[%emt 0:00:46]} g6 {[%emt 0:00:27]} 8. Bxf6 {[%emt 0:04:51]} Bxf6 {[%emt 0:00:35]} 9. e4 {[%emt 0:00:44]} dxe4 {[%emt 0:00:45]} 10. Qxe4+ {[%emt 0:00:13]} Qe7 {[%emt 0:06:17]} 11. Bc4 {[%emt 1:21:25] [#] A rather calm draw. D36: Queen's Gambit Declined: Exchange Variation: Main line (5 Bg5 c6 6 Qc2).} {Predecessor:} O-O $146 12. Qxe7 Bxe7 13. O-O Bf5 14. Rfe1 Bf6 15. h3 h5 16. Ne5 Nd7 17. Nxd7 Bxd7 18. Ne4 Be7 19. Nc5 Bxc5 20. dxc5 Rfe8 21. f4 Bf5 22. Rad1 Kf8 23. Kf2 {½-½ (23) Grachev,B (2621)-Drygalov,A (2484) Sochi 2019} 1/2-1/2

[Event "1st Serbian League 2022"]
[Site "Vrnjacka Banja"]
[Date "2022.09.25"]
[Round "6.13"]
[White "Sarana, Alexey"]
[Black "Budisavljevic, Luka"]
[Result "1-0"]
[ECO "E53"]
[WhiteElo "2662"]
[BlackElo "2524"]
[Annotator "TA"]
[PlyCount "107"]
[EventDate "2022.09.20"]
[EventType "team-tourn"]
[EventCountry "SRB"]
[SourceTitle "playchess.com"]
[Source "ChessBase"]
[SourceQuality "1"]
[TimeControl "40/5400+30:1800+30"]

{[%evp 12,107,6,16,15,7,28,31,46,22,20,-20,19,0,0,0,0,0,0,0,0,0,0,0,0,0,0,0,0,0,0,0,0,0,0,0,0,0,0,0,0,0,0,0,0,-37,0,7,11,9,39,8,27,2,4,6,14,4,12,16,5,3,10,9,11,9,27,15,14,20,24,3,22,15,95,29,76,47,156,164,395,401,1154,1131,29968,29970,29968,29969,5777,5418,29994,29995,29995,29996,29996,29997,29997,29998]} 1. d4 {[%emt 0:00:02]} Nf6 {[%emt 0:00:18]} 2. c4 {[%emt 0:00:05]} e6 {[%emt 0:00:12]} 3. Nc3 {[%emt 0:00:04]} Bb4 {[%emt 0:00:16]} 4. e3 {[%emt 0:00:06]} O-O {[%emt 0:00:29]} 5. Bd3 {[%emt 0:00:11]} c5 {[%emt 0:00:25]} 6. Nf3 {[%emt 0:01:30]} d5 {[%emt 0:00:35]} 7. cxd5 {[%emt 0:00:36]} cxd4 {[%emt 0:02:55] E53: Nimzo-Indian: Rubinstein: Main Line (4...0-0 5 Nf3 d5 6 Bd3 c5 7 0-0).} 8. exd4 {[%emt 0:00:28]} Nxd5 {[%emt 0:07:12]} 9. O-O {[%emt 0:06:03]} Nc6 {[%emt 0:01:48] White is slightly better.} (9... Nxc3 10. bxc3 Bd6 11. Ng5 $16) 10. Qe2 $5 {[%emt 0:12:47][%mdl 4] [#] A promising side line.} Re8 $146 {[%emt 0:04:39]} (10... Nxc3 11. bxc3 Bd6 12. Rb1 $16 (12. Qe4 f5 $14)) ({Predecessor:} 10... Be7 11. Re1 Ncb4 12. Be4 Nf6 13. Bb1 b6 14. Ne4 Bb7 15. Neg5 Qd5 {1-0 (61) Shapoval,G (2202)-Grapsa,G (2106) Kharkov 2009}) 11. Bg5 {[%emt 0:11:56]} Be7 {[%emt 0:03:20]} (11... Nxd4 $5 12. Nxd4 (12. Bxh7+ Kf8 $11) 12... Qxg5 $11) 12. h4 {[%emt 0:03:05]} Bxg5 {[%emt 0:07:58]} 13. hxg5 {[%emt 0:06:19]} Nf4 {[%emt 0:02:17][%csl LRd4,LRe2]} 14. Qe4 {[%emt 0:00:12][%csl LRf4,LRh7]} Nxd3 {[%emt 0:00:08]} 15. Qxd3 {[%emt 0:00:04]} b6 {[%emt 0:04:05]} 16. Qe3 {[%emt 0:02:33]} Bb7 {[%emt 0:01:09]} 17. Rad1 {[%emt 0:00:14]} Ne7 {[%emt 0:05:29]} 18. Ne5 {[%emt 0:00:33]} Rf8 {[%emt 0:16:39]} 19. Rfe1 {[%emt 0:01:40]} Rc8 {[%emt 0:01:15]} 20. Rd3 {[%emt 0:01:34]} Ba6 {[%emt 0:01:36] [#] ...Nf5 is the strong threat.} 21. Rd2 {[%emt 0:01:04]} Bb7 {[%emt 0:00:31]} 22. Rd3 {[%emt 0:03:57]} Ba6 {[%emt 0:00:10]} 23. Rd2 {[%emt 0:00:04]} Bb7 {[%emt 0:00:08][%cal Ba6b7,Bb7e4,Be4d5][%mdl 32]} 24. Qh3 {[%emt 0:03:27]} Nd5 {[%emt 0:15:39]} 25. Ne4 {[%emt 0:15:29]} Nf4 {[%emt 0:03:08]} 26. Qg4 {[%emt 0:01:06]} Bxe4 {[%emt 0:00:33]} 27. Qxf4 {[%emt 0:02:03]} Bd5 {[%emt 0:00:59]} 28. Ng4 {[%emt 0:05:04]} Qc7 {[%emt 0:02:56]} 29. Qe3 {[%emt 0:03:40]} Kh8 {[%emt 0:04:32]} (29... Bxa2 $2 30. b3 $18) 30. a3 {[%emt 0:01:25]} Qb7 {[%emt 0:01:21]} 31. Qh3 {[%emt 0:02:16]} Rc7 {[%emt 0:01:17]} 32. Ne5 {[%emt 0:01:58]} Kg8 {[%emt 0:00:14]} 33. Qg3 {[%emt 0:00:36]} Rfc8 {[%emt 0:01:58]} 34. Kh2 {[%emt 0:00:30]} Rc1 {[%emt 0:03:25]} 35. Rxc1 {[%emt 0:00:30]} Rxc1 {[%emt 0:00:02]} 36. f3 {[%emt 0:00:19]} Qc7 {[%emt 0:01:09]} 37. Qf4 {[%emt 0:01:37]} a5 {[%emt 0:02:17]} 38. Kg3 {[%emt 0:03:48]} Qe7 {[%emt 0:01:52]} 39. Ng4 {[%emt 0:03:04]} Rc8 {[%emt 0:00:40][%cal Oh7h6]} 40. Rd1 {[%emt 0:02:11][%cal Bd2d1,Bd1h1,Bh1h4,Bh4g4][%mdl 32]} Qc7 {[%emt 0:00:47]} 41. Ne5 {[%emt 0:30:22]} Qe7 {[%emt 0:06:58]} 42. Rh1 {[%emt 0:00:00]} Rc2 {[%emt 0:06:57] [#]} (42... Rc7 $11 {remains equal.}) 43. b4 {[%emt 0:00:00] Chess con chili.} (43. Rh5 $1 $16) 43... a4 {[%emt 0:01:14]} (43... axb4 $11 44. axb4 Rc7) 44. Qg4 {[%emt 0:00:00] Strongly threatening Qh5.} Rc3 {[%emt 0:02:37]} ({Black should play} 44... f5 $14 45. Qh5 h6) 45. Qh5 $40 {[%emt 0:00:00][%mdl 128] White attacks with force.} Kf8 $2 {[%emt 0:04:04]} (45... Be4 {is a better defense.}) 46. Rh4 $18 {[%emt 0:00:00] Black must now prevent g6.} ({Not} 46. g6 fxg6 47. Qxg6 (47. Qxh7 Qg5+ 48. Ng4 Kf7 $11) 47... h6 $11) 46... Rc7 {[%emt 0:01:58]} (46... Re3 $142 47. g6 fxg6 48. Qxh7 Qg5+ 49. Rg4 Rxe5) 47. g6 {[%emt 0:01:43]} fxg6 {[%emt 0:04:48]} 48. Qxh7 {[%emt 0:00:13][%cal Rh7h8]} Qg5+ {[%emt 0:02:23]} 49. Rg4 {[%emt 0:00:01]} Qh6 {[%emt 0:01:12]} 50. Nxg6+ {[%emt 0:00:07]} Ke8 {[%emt 0:00:35]} 51. Qg8+ {[%emt 0:00:04] White mates.} Kd7 {[%emt 0:00:05]} 52. Ne5+ {[%emt 0:00:05]} Ke7 {[%emt 0:00:12]} 53. Qf7+ {[%emt 0:00:05]} Kd6 {[%emt 0:00:08]} 54. Qf8+ {[%emt 0:00:03] Weighted Error Value: White=0.08 (flawless) /Black=0.43} 1-0